Cogmind - Beta 13 @@@ ROGUE MODE // 2024.05.04 @ 16:00:13 Player: Anonymous_lightbulb Result: Destroyed by Y-45 Defender with Heavy Assault Rifle Performance ------------- Evolutions (1) 500 Regions Visited (2) 400 Robots Destroyed (10) 50 Value Destroyed (196) 196 Prototype IDs (0) 0 Alien Tech Used (0) 0 Bonus (0) 0 TOTAL SCORE: 1146 Bonus ------- None Cogmind --------- Core Integrity 0/400 Matter 294/300 Energy 99/100 System Corruption 2% Temperature Cool (9) Movement Core (50) Location -9/Materials Parts ------- > --- POWER (1) -------- (None) > --- PROPULSION (3) --- (None) > --- UTILITY (3) ------ (None) > --- WEAPON (2) ------- (None) > --- INVENTORY (5) ---- Light Ion Engine Aluminum Leg Aluminum Leg Peak State ------------ > --- POWER ------------ Ion Engine > --- PROPULSION ------- Light Treads Light Treads > --- UTILITY ---------- Small Storage Unit High-capacity Matter Pod Medium Armor Plating > --- WEAPON ----------- Assault Rifle > --- INVENTORY -------- Light Ion Engine Aluminum Leg Aluminum Leg Wheel Flight Unit Flight Unit Assault Rifle Assault Rifle [Rating: 8] Favorites ----------- Power Ion Engine Engine Ion Engine Power Core Light Nuclear Core Propulsion Light Treads Treads Light Treads Flight Unit Flight Unit Utility Small Storage Unit Storage Small Storage Unit Protection Medium Armor Plating Weapon Assault Rifle Ballistic Gun Assault Rifle Launcher Grenade Launcher Build | -11 -10 -9 ------- Run | Yrd Mat Mat Slots Evolved 2 | . . 2 Power . | . . . Propulsion 1 | . . 1 Utility 1 | . . 1 Weapon . | . . . Parts Attached 19 | 6 6 7 Power 2 | 1 . 1 Engine 1 | 1 . . Core 1 | . . 1 Reactor . | . . . Propulsion 9 | 2 4 3 Treads 4 | 2 2 . Leg . | . . . Wheel . | . . . Hover . | . . . Flight 5 | . 2 3 Utility 3 | 1 1 1 Device . | . . . Storage 2 | 1 1 . Processor . | . . . Hackware . | . . . Protection 1 | . . 1 Artifact . | . . . Weapon 5 | 2 1 2 Energy Gun . | . . . Energy Cannon . | . . . Ballistic Gun 4 | 2 . 2 Ballistic Cannon . | . . . Launcher 1 | . 1 . Special Weapon . | . . . Impact Weapon . | . . . Slashing Weapon . | . . . Piercing Weapon . | . . . Special Melee Weapon . | . . . Unidentified Prototypes . | . . . Parts Lost 13 | . 1 12 Power 2 | . . 2 Propulsion 5 | . . 5 Utility 2 | . . 2 Weapon 4 | . 1 3 Highest Loss Streak 12 | . 1 12 To Critical Strikes . | . . . Average Slot Usage (%) 76 | . 89 52 Engine 11 | . 14 6 Treads 22 | . 27 11 Flight 1 | . . 2 Storage 19 | . 20 16 Protection 1 | . . 3 Ballistic Gun 13 | . 16 9 Launcher 6 | . 9 . Naked Turns 8 | . . 8 Heaviest Build 23 | 14 19 23 Greatest Support 40 | 40 40 40 Greatest Overweight (x) 7 | 4 3 7 Average Overweight (x) . | 1 . . Largest Inventory Capacity 8 | 8 8 8 Average Capacity 7 | 7 8 7 Most Carried 8 | 8 8 8 Average Carried 6 | 4 7 6 Final Capacity 8 | 8 8 5 Final Carried 8 | 6 8 3 Class Distribution -------------------- 100% | Mutant Dominant Class ---------------- Mutant | -10/Materials Mutant | -9/Materials Resources | -11 -10 -9 ----------- Run | Yrd Mat Mat Matter Collected 412 | 219 131 62 Remotely . | . . . Salvage Created 193 | . 120 73 Parts 17 | . 11 6 Haulers Intercepted . | . . . Recyclers Shooed . | . . . Parts Field Recycled . | . . . Retrieved Matter . | . . . Parts Self-Destructed . | . . . Prevented . | . . . Kills | -11 -10 -9 ------- Run | Yrd Mat Mat Combat Hostiles Destroyed 9 | . 5 4 Melee 1 | . . 1 Guns 5 | . 2 3 AOE 3 | . 3 . Classes Destroyed 3 | . 3 . Worker 1 | . 1 . Swarmer 6 | . 3 3 Grunt 3 | . 2 1 Best Kill Streak 3 | . 3 2 Combat Bots Only 3 | . 3 2 Max Kills in Single Turn 3 | . 3 1 Gunslinging . | . . . Exploded 2 | . 2 . Melee 1 | . . 1 Uniques/NPCs Destroyed . | . . . Combat | -11 -10 -9 -------- Run | Yrd Mat Mat Hostile Shots Fired 149 | . 33 116 Missed 29 | . 7 22 Damage Taken 1477 | . 377 1100 Core 429 | . 24 405 Absorbed by Shields . | . . . Core Remaining (%) 95 | 100 90 . Volleys Fired 23 | . 6 17 Largest 2 | . 2 2 Hottest 50 | . 50 40 Shots Fired 30 | . 9 21 Gun 27 | . 6 21 Cannon . | . . . Launcher 3 | . 3 . Special . | . . . Kinetic 27 | . 6 21 Thermal . | . . . Explosive 3 | . 3 . Electromagnetic . | . . . Robot Hit Streak 4 | . 3 4 Robot Miss Streak 1 | . 1 1 Penetration Max . | . . . Secondary Targets . | . . . Shots Hit Robots 18 | . 6 12 Core Hits 15 | . 7 8 Critical Kills . | . . . Critical Parts Destroyed . | . . . Critical Strikes . | . . . Melee Attacks . | . . . Impact . | . . . Slashing . | . . . Piercing . | . . . Sneak Attacks . | . . . Combat Hostiles . | . . . Follow-up Attacks . | . . . Damage Inflicted 457 | . 291 166 Guns 221 | . 69 152 Cannons . | . . . Explosions 217 | . 217 . Melee . | . . . Ramming 19 | . 5 14 Kinetic 221 | . 69 152 Thermal . | . . . Explosive 217 | . 217 . Electromagnetic . | . . . Impact . | . . . Slashing . | . . . Piercing . | . . . Highest Corruption 2 | . . 2 Average Corruption 2 | . . 2 Corruption Purged . | . . . Corruption Blocked . | . . . Overload Shots . | . . . Overflow Damage 10 | . 10 . Projectiles . | . . . Explosions 10 | . 10 . Melee . | . . . Knockbacks . | . . . Impact . | . . . Kinetic . | . . . Secondary . | . . . Self-Inflicted Damage 158 | . 155 3 Shots 3 | . 3 . Rammed 5 | . 2 3 Targets Rammed 6 | . 2 4 Kicked . | . . . Crushed 1 | . . 1 Highest Temperature 3 | . 2 3 Average Temperature 2 | . 2 3 Received Heat Transfer 363 | . 48 315 Siege Activations . | . . . Robots Corrupted . | . . . Combat Hostiles . | . . . Parts Fried . | . . . Impact Corruptions . | . . . Robots Melted . | . . . Combat Hostiles . | . . . Parts Melted . | . . . Heat Transferred . | . . . Parts Sabotaged . | . . . Parts Stolen . | . . . Parts Stripped . | . . . Power Chain Reactions . | . . . Alert | -11 -10 -9 ------- Run | Yrd Mat Mat Peak Influence 182 | . 182 141 Initial 76 | . . 76 Average 73 | . 86 99 Maximum Alert Level . | . . . Low Security (%) 100 | 100 100 100 Level 1 . | . . . Level 2 . | . . . Level 3 . | . . . Level 4 . | . . . Level 5 . | . . . High Security . | . . . Max Security . | . . . Squads Dispatched 1 | . . 1 Investigation . | . . . Extermination . | . . . Reinforcement 1 | . . 1 Assault . | . . . Garrison . | . . . Intercept . | . . . Searches Triggered . | . . . Construction Impeded . | . . . Haulers Reinforced . | . . . Active Scanning Responses . | . . . Cargo Convoy Interrupts . | . . . Stealth | -11 -10 -9 --------- Run | Yrd Mat Mat Distress Signals 3 | . . 3 Communications Jammed . | . . . Distress Signals . | . . . Times Spotted 18 | . 5 13 Peak Tracking Total 8 | . 3 8 Tactical Retreats 1 | . . 1 Traps | -11 -10 -9 ------- Run | Yrd Mat Mat Traps Triggered . | . . . Indirectly . | . . . Trap Hack Attempts . | . . . Triggered . | . . . Disarmed . | . . . Reprogrammed . | . . . Reused . | . . . Traps Extracted . | . . . Installed . | . . . Triggered . | . . . Machines | -11 -10 -9 ---------- Run | Yrd Mat Mat Machines Disabled 2 | . 2 . Max in Single Turn 1 | . 1 . Machines Repaired . | . . . Machines Dismantled . | . . . Machines Sabotaged . | . . . Overloaded Fab Kills . | . . . Hacking | -11 -10 -9 --------- Run | Yrd Mat Mat Machines Accessed 3 | . 1 2 Terminals 2 | . 1 1 Fabricators . | . . . Repair Stations . | . . . Recycling Units 1 | . . 1 Scanalyzers . | . . . Garrison Access . | . . . Total Hacks 6 | . 3 3 Successful 4 | . 2 2 Failed 2 | . 1 1 Catastrophic 1 | . . 1 Database Lockouts . | . . . Manual 2 | . . 2 Terminals 4 | . 3 1 Fabricators . | . . . Repair Stations . | . . . Recycling Units 2 | . . 2 Scanalyzers . | . . . Garrison Access . | . . . Terminal Hacks 2 | . 2 . Record 1 | . 1 . Alert Level 1 | . 1 . Fabricator Hacks . | . . . Repair Station Hacks . | . . . Recycling Unit Hacks 2 | . . 2 Recycle Component 1 | . . 1 Process 1 | . . 1 Scanalyzer . | . . . Garrison Access Hacks . | . . . Unauthorized Hacks . | . . . Terminals . | . . . Fabricators . | . . . Repair Stations . | . . . Recycling Units . | . . . Scanalyzers . | . . . Garrison Access . | . . . Data Cores Recovered . | . . . Used . | . . . Hacking Detections 2 | . . 2 Full Trace Events . | . . . Feedback Events . | . . . Feedback Blocked . | . . . Robot Schematics Acquired . | . . . Robots Built . | . . . Authchips . | . . . Time . | . . . Total Robot Build Rating . | . . . Part Schematics Acquired . | . . . Parts Built . | . . . Authchips . | . . . Time . | . . . Total Part Build Rating . | . . . Parts Repaired . | . . . Time . | . . . Parts Recycled 1 | . . 1 Recycled Matter 56 | . . 56 Retrieved Matter . | . . . Retrieved Components . | . . . Parts Scanalyzed . | . . . Part Schematics Acquired . | . . . Parts Damaged . | . . . Bothacking | -11 -10 -9 ------------ Run | Yrd Mat Mat Used RIF Installer . | . . . Robots Hacked . | . . . Non-combat . | . . . Combat . | . . . Robot Hacks Applied . | . . . Relay Couplers Released . | . . . Fabnet Peak Effective % . | . . . Robots Rewired . | . . . Allies Hacked . | . . . Hacks Repelled . | . . . Allies | -11 -10 -9 -------- Run | Yrd Mat Mat Total Allies . | . . . Largest Group . | . . . Highest-Rated Group . | . . . Highest-Rated Ally . | . . . Total Orders . | . . . Ally Attacks . | . . . Total Damage . | . . . Kills . | . . . Allies Corrupted . | . . . Allies Melted . | . . . Intel | -11 -10 -9 ------- Run | Yrd Mat Mat Robot Analysis Total . | . . . Derelict Logs Recovered . | . . . Drone Launches . | . . . Drone Recoveries . | . . . Exploration | -11 -10 -9 ------------- Run | Yrd Mat Mat Turns Passed 754 | 144 396 214 Spaces Moved 414 | 76 228 110 Core 88 | 44 . 44 Treads 320 | 32 224 64 Legs . | . . . Wheels . | . . . Hover . | . . . Flight 6 | . 4 2 Fastest Speed 34 | 50 117 34 Average Speed 158 | 167 160 145 Slowest Speed 400 | 250 300 400 Overloaded Moves . | . . . Propulsion Burnouts . | . . . Robots Hopped . | . . . Cave-ins Triggered . | . . . Exploration Rate (%) 14 | 5 26 13 Regions Visited 2 Branch Regions . Pre-discovered Areas . | . . . Known Exits Taken . | . . . Unknown Exits Taken 2 | 1 1 . Scrap Searched . | . . . Spaces Dug . | . . . Terrain Destroyed 47 | . 47 . Melee . | . . . Projectile . | . . . AOE 47 | . 47 . Terrain Rammed . | . . . Walls Destroyed . | . . . Machines Disabled . | . . . Actions | -11 -10 -9 --------- Run | Yrd Mat Mat Total 478 | 92 245 141 Wait . | . . . Move 412 | 75 227 110 Hop . | . . . Pick Up 16 | 11 3 2 Fast Attach 3 | 1 1 1 Attach 11 | 5 . 6 Detach . | . . . Swap 5 | . 5 . Drop 2 | . 1 1 Fire 23 | . 6 17 Melee . | . . . Ram 2 | . . 2 Kick . | . . . Crush 4 | . 2 2 Escape Stasis . | . . . Rewire . | . . . Trap . | . . . Miscellaneous . | . . . Route ------- -11/Scrapyard -10/Materials -9/Materials History --------- Turn | Location | Event 23 | -11/Scrapyard | Discovered new exit (range 15) 145 | -11/Scrapyard | Entered Materials 315 | -10/Materials | Build established: Mutant 519 | -10/Materials | Discovered new exit (range 8) 541 | -10/Materials | Entered another Materials area 541 | -9/Materials | Evolved 2 slots: Propulsion x1, Utility x1 687 | -9/Materials | Core integrity fell below 50% 731 | -9/Materials | Core integrity fell below 20% 755 | -9/Materials | Destroyed by Y-45 Defender with Heavy Assault Rifle Last Messages --------------- K-01 Serf collects debris. G-47 Trooper destroyed. K-01 Serf collects debris. Assault Rifle destroyed. Acquired 46 matter. Acquired Lgt. Nuclear Core. K-01 Serf collects debris. Connecting with Recycling Unit... >>Recycle(Wheel) Accepting Wheel... >>Recycling(Process) Analyzing inventory... Recycling at 100% efficiency: Plasma Cutter (6) Med. Armor Plating (30) Wheel (20) Slammed into Y-45 Defender. Destabilizing: System corrupted (+2). Slammed into Y-45 Defender. Lgt. Nuclear Core destroyed. Map ----- +----------------------------------------------------+ | ???????????????# #????????????????????????????? | | ???????????????# #????????????????????????????? | | ???????????????+ #????????????????????????????? | | ???????????????# #????????????????????????????? | | ???????????????# #????????????????????????????? | | ?#########????## #????????????????????????????? | | # ??# ###+####?????????????????????? | | # [ # #?????????????????????? | | ?????""" + +?????????????????????? | | ?????"""""" # """ """ #?????????????????????? | | ???????""" ??# """ """ #?????????????????????? | | ????? ????# """ """ #?????????????????????? | | ?????###??#???# #?????????????????????? | | ???######## ### #?????????????????????? | | #?????????????????????? | | ##########??????# ????? | | ^ [[! # ! #????? ???? | | ?" """"" """ [[! # #??? ???? | | ????""""" """"" [!! # """ #?? ?????? | | ??? """"" ^""""" # """ ## ???????? | | ?? """"" rw + """ / ??????????? | | ?? "" # """ #????????????? | | ? u # """ #????????????? | | ?? = w # #????????????? | | ????######### =[! # #????????????? | | ??????????#####+######## @ ##########????????????? | | ??????????# %*%[ #??# #?????????????????????? | | ??????????# *!"" #??# #?????????????????????? | | ??????????# !T" #??# #?????????????????????? | | ??????????# """ "" #### #?????????????????????? | | ??????????# """ + #?????????????????????? | | ??????????# """ #####Y####???????????????????? | | ??????????# # #???????????????????? | | ??????????# # """ #???????????????????? | | ??????????## ## ""### """ #???????????????????? | | ???????????##?#S""#?# """ #???????????????????? | | ??????????????#"" #?# #???????????????????? | | ??????????????#####?# #???????????????????? | | ????????????????????# "Y" #???????????????????? | | ????????????????????# """ #???????????????????? | | ????????????????????# #???????????????????? | | ????????????????????######## #???????????????????? | | ????????????????????????????##???????????????????? | | ?????????????????????????????????????????????????? | | ?????????????????????????????????????????????????? | | ?????????????????????????????????????????????????? | | ?????????????????????????????????????????????????? | | ?????????????????????????????????????????????????? | | ?????????????????????????????????????????????????? | | ?????????????????????????????????????????????????? | +----------------------------------------------------+ Best States ------------- Heat Dissipation 28 Energy Generation 14 Energy Capacity 250 Matter Stores 310 Matter Capacity 500 Sight Range 16 Terrain Scan Density 10 Armor Coverage 225 Evasion (%) 50 Recoil Reduction 2 Item Schematics ----------------- None Robot Schematics ------------------ None Fabricated ------------ Nothing Alien Tech Used ----------------- None Achievements -------------- None Challenges ------------ None Game ------ Seed BottomlessMissileLoader Manual? 0 Play Time 00:10:29 Cumulative 2.3 hours Start 2024.05.04 @ 15:52:37 End 2024.05.04 @ 16:00:13 Sessions 1 Manual Loads 0 Difficulty Rogue Special Mode None Game No. 10 Rogue 10 Adventurer 0 Explorer 0 Win Type - Total 0 Types 0/0/0/0/0/0/0/0/0 Lore% 3 Gallery% 6 Achievement% 6 Wizard Run 0 Options --------- Layout 1 ASCII 0 Keyboard 0 Movement Arrows Keybinds 0 Fullscreen 1 Font 24/Smallcaps Map View 50x40 Zoom Use 0% Tactical HUD 0 Map Filters NONE Filters NONE Steam 1 RUN: 124ce0e0-186f-4b49-8b2e-d4562697b432